Cogmind - Beta 15 @@@ ROGUE MODE // 2025.07.20 @ 22:12:12 Player: Skysub Result: Destroyed by 9W-NPR(R) with Subdweller Machine Gun Performance ------------- Evolutions (0) 0 Regions Visited (2) 400 Robots Destroyed (28) 140 Value Destroyed (685) 685 Prototype IDs (0) 0 Alien Tech Used (0) 0 Bonus (0) 0 TOTAL SCORE: 1225 Bonus ------- None Cogmind --------- Core Integrity 0/250 Matter 300/300 Energy 100/100 System Corruption 0% Temperature Cool (0) Movement Treading (260) Ox1 Location -10/Subcaves Parts ------- > --- POWER (1) -------- Subdweller Power Source > --- PROPULSION (2) --- Light Treads Spiked Treads > --- UTILITY (2) ------ Large Storage Unit Structural Scanner > --- WEAPON (2) ------- Battle Rifle Hammer > --- INVENTORY (15) --- Light Treads Subdweller Monowheel Subdweller Monowheel Subdweller Monowheel Subdweller Optics Makeshift Light Armor Plating Subdweller Laser Subdweller Beam Cannon Assault Rifle Assault Rifle Barrage Gun Subdweller Shrapnel Launcher Ripper Peak State ------------ > --- POWER ------------ (None) > --- PROPULSION ------- Light Treads Wheel > --- UTILITY ---------- Large Storage Unit Makeshift Light Armor Plating > --- WEAPON ----------- Battle Rifle Hammer > --- INVENTORY -------- Subdweller Power Source Light Treads Subdweller Monowheel Subdweller Monowheel Subdweller Monowheel Structural Scanner Subdweller Optics Light Armor Plating Subdweller Laser Subdweller Beam Cannon Assault Rifle Assault Rifle Barrage Gun Subdweller Shrapnel Launcher Ripper [Rating: 12] Favorites ----------- Power Light Ion Engine Engine Light Ion Engine Propulsion Light Treads Treads Light Treads Wheel Wheel Utility Large Storage Unit Device Structural Scanner Storage Large Storage Unit Protection Light Armor Plating Weapon Assault Rifle Ballistic Gun Assault Rifle Launcher Grenade Launcher Impact Weapon Hammer Build | -11 -10 -10 ------- Run | Yrd Mat Sub Slots Evolved . | . . . Power . | . . . Propulsion . | . . . Utility . | . . . Weapon . | . . . Parts Attached 26 | 6 4 16 Power 3 | 1 . 2 Engine 3 | 1 . 2 Core . | . . . Reactor . | . . . Propulsion 7 | 2 1 4 Treads 5 | 2 1 2 Leg . | . . . Wheel 2 | . . 2 Hover . | . . . Flight . | . . . Utility 7 | 1 3 3 Device 2 | . . 2 Storage 3 | 1 2 . Processor . | . . . Hackware . | . . . Protection 2 | . 1 1 Artifact . | . . . Weapon 9 | 2 . 7 Energy Gun . | . . . Energy Cannon . | . . . Ballistic Gun 7 | 2 . 5 Ballistic Cannon . | . . . Launcher 1 | . . 1 Special Weapon . | . . . Impact Weapon 1 | . . 1 Slashing Weapon . | . . . Piercing Weapon . | . . . Special Melee Weapon . | . . . Unidentified Prototypes . | . . . Parts Lost 11 | . 1 10 Power 2 | . 1 1 Propulsion 4 | . . 4 Utility 1 | . . 1 Weapon 4 | . . 4 Highest Loss Streak 4 | . 1 4 To Critical Strikes . | . . . Average Backups 11 | 2 10 12 Power . | . 1 . Propulsion 2 | . 2 3 Utility 2 | . 1 2 Weapon 5 | . 5 5 Tool/Special . | . . . Unused Backups 12 | . 1 11 Power . | . . . Propulsion 3 | . . 3 Utility 2 | . . 2 Weapon 7 | . 1 6 Tool/Special . | . . . Average Slot Usage (%) 90 | . 89 90 Engine 6 | . 6 6 Treads 22 | . 28 19 Wheel 5 | . . 8 Device 6 | . . 10 Storage 14 | . 14 14 Protection 5 | . 12 2 Ballistic Gun 19 | . 28 15 Launcher 1 | . . 3 Impact Weapon 6 | . . 9 Peak Build Rating 12 | 6 8 12 Average Rating 8 | 5 7 9 On Entrance 4 | . 6 7 Naked Turns . | . . . Heaviest Build 32 | 11 29 32 Greatest Support 40 | 40 40 40 Greatest Overweight (x) 9 | . . 9 Average Overweight (x) 1 | . . 1 Largest Inventory Capacity 15 | 8 15 15 Average Capacity 14 | 7 13 15 Most Carried 15 | 4 12 15 Average Carried 11 | 2 10 12 Final Capacity 15 | 8 15 15 Final Carried 13 | 4 12 13 Class Distribution -------------------- 100% | Mutant Dominant Class ---------------- Mutant | -10/Materials Mutant | -10/Subcaves Resources | -11 -10 -10 ----------- Run | Yrd Mat Sub Matter Collected 902 | 214 261 427 Remotely . | . . . Salvage Created 798 | 118 338 342 Parts 63 | 10 35 18 Haulers Intercepted 1 | . 1 . Recyclers Shooed . | . . . Parts Field Recycled . | . . . Retrieved Matter . | . . . Parts Self-Destructed 1 | . . 1 Prevented . | . . . Kills | -11 -10 -10 ------- Run | Yrd Mat Sub Combat Hostiles Destroyed 21 | . 10 11 Melee 1 | . . 1 Guns 15 | . 10 5 AOE 3 | . . 3 Classes Destroyed 8 | 2 5 1 Builder 2 | . 2 . Tunneler 2 | 2 . . Hauler 1 | . 1 . Recycler 1 | 1 . . Watcher 1 | . 1 . Swarmer 6 | . 6 . Grunt 6 | . 4 2 Subdweller 9 | . . 9 Best Kill Streak 5 | 3 5 4 Combat Bots Only 5 | . 5 4 Max Kills in Single Turn 2 | 1 1 2 Gunslinging . | . . . Exploded 2 | . . 2 Melee 1 | . . 1 Uniques/NPCs Destroyed . | . . . Combat | -11 -10 -10 -------- Run | Yrd Mat Sub Hostile Shots Fired 141 | . 49 92 Missed 42 | . 12 30 Hits 99 | . 37 62 Projectile 99 | . 37 62 Critical Strikes 2 | . . 2 Damage Taken 1564 | . 337 1227 Core 272 | . 29 243 Absorbed by Shields . | . . . Core Remaining (%) 100 | 100 . . Volleys Fired 84 | 5 40 39 Largest 2 | 2 2 2 Hottest 50 | 40 40 50 Shots Fired 157 | 10 80 67 Gun 145 | 10 80 55 Cannon . | . . . Launcher 12 | . . 12 Special . | . . . Kinetic 145 | 10 80 55 Thermal . | . . . Explosive 12 | . . 12 Electromagnetic . | . . . Robot Hit Streak 9 | 6 7 9 Robot Miss Streak 3 | 1 3 3 Penetration Max . | . . . Secondary Targets 2 | . 2 . Max Gunslinging Chain 1 | . 1 . Shots Hit Robots 104 | 7 42 55 Core Hits 47 | 5 23 19 Critical Kills 1 | . . 1 Critical Parts Destroyed 3 | . 1 2 Critical Strikes 5 | . 1 4 Destroy 2 | . 1 1 Smash 3 | . . 3 Melee Attacks 41 | . . 41 Impact 41 | . . 41 Slashing . | . . . Piercing . | . . . Sneak Attacks . | . . . Combat Hostiles . | . . . Follow-up Attacks . | . . . Damage Inflicted 1963 | 76 483 1404 Guns 1063 | 76 483 504 Cannons . | . . . Explosions 657 | . . 657 Melee 243 | . . 243 Ramming . | . . . Kinetic 1063 | 76 483 504 Thermal . | . . . Explosive 657 | . . 657 Electromagnetic . | . . . Impact 243 | . . 243 Slashing . | . . . Piercing . | . . . Highest Corruption . | . . . Average Corruption . | . . . Corruption Purged . | . . . Corruption Blocked . | . . . Overload Shots . | . . . Overflow Damage 42 | . . 42 Projectiles . | . . . Explosions . | . . . Melee 42 | . . 42 Knockbacks 2 | . . 2 Impact 2 | . . 2 Kinetic . | . . . Secondary . | . . . Self-Inflicted Damage 23 | . . 23 Shots 3 | . . 3 Rammed . | . . . Targets Rammed . | . . . Kicked . | . . . Crushed . | . . . Highest Temperature 12 | . 12 . Average Temperature 4 | . 4 . Received Heat Transfer 465 | . 78 387 Siege Activations . | . . . Martial Activations . | . . . Shielding Activations . | . . . Robots Disrupted . | . . . Combat Hostiles . | . . . Robots Corrupted 2 | . . 2 Combat Hostiles 2 | . . 2 Parts Fried 1 | . . 1 Impact Corruptions 2 | . . 2 Robots Melted . | . . . Combat Hostiles . | . . . Parts Melted . | . . . Heat Transferred . | . . . Parts Sabotaged . | . . . Parts Stolen . | . . . Parts Stripped . | . . . Power Chain Reactions . | . . . Alert | -11 -10 -10 ------- Run | Yrd Mat Sub Maximum Alert Level . | . . . Low Security (%) 100 | 100 100 . Level 1 . | . . . Level 2 . | . . . Level 3 . | . . . Level 4 . | . . . Level 5 . | . . . High Security . | . . . Max Security . | . . . Peak Influence 100 | 10 100 . Initial 3 | . 3 . Average 26 | 1 28 . Influence Increases 371 | 15 306 50 Destroy 0b10 Robot/C 240 | . 200 40 Destroy 0b10 Robot/NC 35 | 15 20 . Destroy Leader 44 | . 34 10 Successful Hack 22 | . 22 . Select Force Hacks 30 | . 30 . Influence Decreases 371 | 10 311 50 Entered New Map 2 | . 2 . Time Decay 349 | 10 299 40 Lost Part 20 | . 10 10 Squads Dispatched 2 | . 2 . Investigation 1 | . 1 . Extermination . | . . . Reinforcement 1 | . 1 . Assault . | . . . Garrison . | . . . Intercept . | . . . Searches Triggered . | . . . Construction Impeded . | . . . Haulers Reinforced . | . . . Active Scanning Responses . | . . . Cargo Convoy Interrupts . | . . . Stealth | -11 -10 -10 --------- Run | Yrd Mat Sub Distress Signals . | . . . Communications Jammed . | . . . Distress Signals . | . . . Times Spotted 28 | . 15 13 Peak Tracking Total 5 | . 5 4 Tactical Retreats . | . . . Traps | -11 -10 -10 ------- Run | Yrd Mat Sub Traps Triggered . | . . . Indirectly . | . . . Trap Hack Attempts . | . . . Triggered . | . . . Disarmed . | . . . Reprogrammed . | . . . Reused . | . . . Traps Extracted . | . . . Installed . | . . . Triggered . | . . . Machines | -11 -10 -10 ---------- Run | Yrd Mat Sub Machines Disabled . | . . . Max in Single Turn . | . . . Machines Repaired . | . . . Machines Dismantled . | . . . Machines Sabotaged . | . . . Overloaded Fab Kills . | . . . Hacking | -11 -10 -10 --------- Run | Yrd Mat Sub Machines Accessed 7 | . 6 1 Terminals 5 | . 5 . Fabricators . | . . . Repair Stations . | . . . Recycling Units 1 | . 1 . Scanalyzers . | . . . Garrison Access . | . . . Total Hacks 24 | . 20 4 Successful 15 | . 11 4 Failed 9 | . 9 . Catastrophic . | . . . Database Lockouts . | . . . Manual 18 | . 18 . Terminals 18 | . 18 . Fabricators . | . . . Repair Stations . | . . . Recycling Units 2 | . 2 . Scanalyzers . | . . . Garrison Access . | . . . Terminal Hacks 6 | . 2 4 Record 4 | . . 4 Terminal Index 1 | . 1 . Locate Traps 1 | . 1 . Fabricator Hacks . | . . . Repair Station Hacks . | . . . Recycling Unit Hacks 1 | . 1 . Report Inventory 1 | . 1 . Scanalyzer . | . . . Garrison Access Hacks . | . . . Unauthorized Hacks 8 | . 8 . Terminals 7 | . 7 . Botnet 2 | . 2 . Skim 5 | . 5 . Fabricators . | . . . Repair Stations . | . . . Recycling Units 1 | . 1 . Tunnel 1 | . 1 . Scanalyzers . | . . . Garrison Access . | . . . Data Cores Recovered . | . . . Used . | . . . Hacking Detections 5 | . 5 . Full Trace Events . | . . . Feedback Events . | . . . Feedback Blocked . | . . . Robot Schematics Acquired . | . . . Robots Built . | . . . Authchips . | . . . Time . | . . . Total Robot Build Rating . | . . . Part Schematics Acquired . | . . . Parts Built . | . . . Authchips . | . . . Time . | . . . Total Part Build Rating . | . . . Parts Repaired . | . . . Time . | . . . Parts Recycled . | . . . Recycled Matter . | . . . Retrieved Matter . | . . . Retrieved Components . | . . . Parts Scanalyzed . | . . . Part Schematics Acquired . | . . . Parts Damaged . | . . . Bothacking | -11 -10 -10 ------------ Run | Yrd Mat Sub Used RIF Installer . | . . . Robots Hacked . | . . . Non-combat . | . . . Combat . | . . . Robot Hacks Applied . | . . . Relay Couplers Released . | . . . Fabnet Peak Effective % . | . . . Robots Rewired . | . . . Allies Hacked . | . . . Hacks Repelled . | . . . Allies | -11 -10 -10 -------- Run | Yrd Mat Sub Total Allies . | . . . Largest Group . | . . . Highest-Rated Group . | . . . Highest-Rated Ally . | . . . Total Orders . | . . . Ally Attacks . | . . . Total Damage . | . . . Kills . | . . . Allies Corrupted . | . . . Allies Melted . | . . . Intel | -11 -10 -10 ------- Run | Yrd Mat Sub Active Infowar (turns) 1365 | . . 1365 Structural 1365 | . . 1365 Robot Analysis Total . | . . . Derelict Logs Recovered 2 | . . 2 Drone Launches . | . . . Drone Recoveries . | . . . Exploration | -11 -10 -10 ------------- Run | Yrd Mat Sub Turns Passed 2950 | 92 1050 1808 Spaces Moved 1457 | 46 303 1108 Core 8 | 7 . 1 Treads 616 | 39 303 274 Legs . | . . . Wheels 833 | . . 833 Hover . | . . . Flight . | . . . Fastest Speed 50 | 50 160 110 Average Speed 143 | 143 160 139 Slowest Speed 500 | 160 160 500 Overloaded Moves . | . . . Propulsion Burnouts . | . . . Robots Hopped . | . . . Potential Cave-ins . | . . . Cave-ins Triggered . | . . . Exploration Rate (%) 39 | 4 60 55 Regions Visited 2 Branch Regions 1 Pre-discovered Areas 2 | . 1 1 Known Exits Taken . | . . . Unknown Exits Taken 2 | 1 1 . Scrap Searched 8 | . . 8 Spaces Dug 6 | . . 6 Terrain Destroyed 65 | . . 65 Melee 6 | . . 6 Projectile . | . . . AOE 59 | . . 59 Terrain Rammed . | . . . Walls Destroyed . | . . . Machines Disabled . | . . . Actions | -11 -10 -10 --------- Run | Yrd Mat Sub Total 2087 | 60 797 1230 Wait 446 | . 440 6 Move 1455 | 45 302 1108 Hop . | . . . Pick Up 25 | 4 8 13 Fast Attach 8 | 6 1 1 Attach 10 | . . 10 Detach . | . . . Swap 12 | . 3 9 Drop 6 | . 3 3 Fire 84 | 5 40 39 Melee 41 | . . 41 Ram . | . . . Kick . | . . . Crush . | . . . Escape Stasis . | . . . Rewire . | . . . Trap . | . . . Miscellaneous . | . . . Route ------- -11/Scrapyard -10/Materials (discovered 5 exits: *Mat x3 / [*Min] / *Sub) -10/Subcaves (discovered 2 exits: *Mat x2) History --------- Turn | Location | Event 18 | -11/Scrapyard | Discovered new exit (range 15) 93 | -11/Scrapyard | Entered Materials 306 | -10/Materials | Build established: Mutant 604 | -10/Materials | Discovered new exit (range 9) 668 | -10/Materials | Discovered new exit (range 16) 706 | -10/Materials | Identified exit to Materials 776 | -10/Materials | Discovered new exit (range 9) 851 | -10/Materials | Loaded intel: 16 trap records 951 | -10/Materials | Learned location of 1 exit from Recycling 1003 | -10/Materials | Learned location of 1 exit from Recycling 1065 | -10/Materials | Learned Materials trap positions 1143 | -10/Materials | Entered Subcaves 1144 | -10/Subcaves | Approached by a straggling Scientist 1144 | -10/Subcaves | Identified exit to Materials 1338 | -10/Subcaves | Shifting Twisted Machinery released Sub. Laser 1442 | -10/Subcaves | Lost 4 parts (1p2n1w) 1517 | -10/Subcaves | Shifting Twisted Machinery released Sub. Beam Cannon 1819 | -10/Subcaves | Shifting Twisted Machinery released Barrage Gun 1989 | -10/Subcaves | Visited Clippyterm 1992 | -10/Subcaves | Learned Factory fabricator intel 1992 | -10/Subcaves | Learned Factory garrison access intel 2031 | -10/Subcaves | Shifting Twisted Machinery released Battle Rifle 2058 | -10/Subcaves | Core integrity fell below 50% 2175 | -10/Subcaves | Learned Materials emergency access door positions 2191 | -10/Subcaves | Disturbed a concealed Subdweller 2201 | -10/Subcaves | Core integrity fell below 20% 2874 | -10/Subcaves | Discovered exit to Materials (range 17) 2951 | -10/Subcaves | Destroyed by 9W-NPR(R) with Subdweller Machine Gun Last Messages --------------- 02440_ 08-4SQ(R) knocked back. 02441_ 08-4SQ(R) system terminally corrupted. 02441_ Disposable Heat Sink fried. 02443_ Acquired 25 matter. 02469_ Wheel destroyed. 02473_ Destroyed Sub. Monowheel. 02473_ ZO-OZ2(R) system corrupted by crushing effect. 02474_ ZO-OZ2(R) system terminally corrupted. 02480_ Acquired Spk. Treads. 02482_ Acquired 10 matter. 02663_ Acquired 9 matter. 02820_ Acquired 1 matter. 02824_ Subatomizers dissect the Sub. Monowheel. 02849_ Subatomizers dissect the Sub. Monowheel, destroying it. 02850_ Sub. Power Source shoots sparks and powers down. 02874_ EXIT=FOUND: MATERIALS Map ----- +----------------------------------------------------+ | ?????????????????????????????????????????????????? | | ?????????????????????????????????????????????????? | | ?????????????????????????????????????????????????? | | ?????????????????????????????????????????????????? | | ?????????????????????????????????????????????????? | | ?????????????????????????????????????????????????? | | ?????????????????????????????????????????????????? | | ?????????????????????????????????????????????????? | | ?????????????????????????????????????????????????? | | ?????????????????????????????????????????????????? | | ?????????????????????????????????????????????????? | | ?????????????????????????????????????????????????? | | ?????????????????????????????????????????????????? | | ?????????????????????????????????????????????????? | | ?????????????????????????????????????????????????? | | ?????????????????????????????????????????????????? | | ?????????????????????????????????????????????????? | | ?????????????????????????????????????????????????? | | ?????????????????????????????????????????????????? | | ?????????????????????######??????????????????????? | | ????????#########????#######???? ##??????????????? | | # ??????############?## #####?? ###?????????????? | | ##??????## ######## ##### ##""????????????? | | ##??##### ##### ## """????????????? | | ######## #### R""?????????????? | | ##### ## ## @ R "###?????????????? | | # ## ## # # ##"##?????????????? | | # ##### =% ## ######?????????????? | | ######### # = ###?????????????????? | | # % % ##??????????????????? | | ##### < % ##??????????????????? | | ##### ###### ###?????????????????? | | ##?### ## ####### ##?????????????????? | | ???#### #### #####??? ####?????????????????? | | ????#################????#######?????????????????? | | ?????##############??????#####???????????????????? | | ?????????????????????????????????????????????????? | | ?????????????????????????????????????????????????? | | ?????????????????????????????????????????????????? | | ?????????????????????????????????????????????????? | | ?????????????????????????????????????????????????? | | ?????????????????????????????????????????????????? | | ?????????????????????????????????????????????????? | | ?????????????????????????????????????????????????? | | ?????????????????????????????????????????????????? | | ?????????????????????????????????????????????????? | | ?????????????????????????????????????????????????? | | ?????????????????????????????????????????????????? | | ?????????????????????????????????????????????????? | | | +----------------------------------------------------+ Best States ------------- Heat Dissipation 25 Energy Generation 15 Energy Capacity 200 Matter Stores 300 Matter Capacity 300 Sight Range 16 Terrain Scan Density 10 Armor Coverage 150 Evasion (%) 40 Recoil Reduction 2 Item Schematics ----------------- None Robot Schematics ------------------ None Fabricated ------------ Nothing Repaired ---------- Nothing Alien Tech Used ----------------- None Achievements -------------- None Challenges ------------ None Game ------ Seed MissileDeflectorJammer Manual? 0 Play Time 00:17:49 Cumulative 165.9 hours Start 2025.07.20 @ 21:57:42 End 2025.07.20 @ 22:12:12 Sessions 1 Manual Loads 0 Difficulty Rogue Special Mode None Game No. 183 Rogue 183 Adventurer 0 Explorer 0 Win Type - Total 3 Types 1/0/0/1/0/0/0/0/0/1 Lore% 67 Gallery% 62 Achievement% 55 Wizard Run 0 Options --------- Layout 1 ASCII 0 Keyboard 1 Movement Arrows Keybinds 0 Fullscreen 1 Font 36/Smallcaps Map View 50x40 Zoom Use 0% Tactical HUD 1 Map Filters NONE Filters NONE Steam 1 RUN: 1849ff85-95f4-4b4b-b455-5cd695122b08